bitfinex/quotes_BTCUSD_20250714
["timestamp","ask_amount","ask_price","bid_price","bid_amount"]
[1752477201810,0.24140279,122220.0,122210.0,0.12597076]
[1752477202031,0.56239967,122220.0,122210.0,5.076e-05]
[1752477202247,0.6444025,122220.0,122210.0,5.076e-05]
[1752477204267,0.6689385,122220.0,122210.0,5.076e-05]
[1752477205101,0.23503522,122210.0,122200.0,0.12197076]
[1752477205324,0.23528522,122210.0,122200.0,0.12197076]
[1752477206615,0.2193244,122200.0,122180.0,0.50102684]
[1752477206846,0.2193242,122200.0,122190.0,0.01636787]
[1752477207091,0.22650737,122200.0,122190.0,0.14216787]
[1752477207309,0.23469067,122200.0,122180.0,0.58645677]
[1752477207499,0.26749067,122200.0,122190.0,0.1258]
[1752477207700,0.2439411,122200.0,122190.0,0.61866003]
[1752477207924,0.0081827,122200.0,122190.0,0.50922763]
[1752477208068,0.0081827,122200.0,122190.0,0.63502763]
[1752477208262,0.17184882,122200.0,122190.0,0.64321113]
[1752477208504,0.17184882,122200.0,122190.0,0.6432112]
[1752477208690,0.18003165,122200.0,122190.0,0.64321127]
[1752477208912,0.0081827,122200.0,122190.0,0.65139477]
[1752477209117,0.25575015,122210.0,122190.0,0.64321033]
[1752477209274,0.25374955,122210.0,122190.0,0.64321]
[1752477209474,0.00818277,122200.0,122190.0,0.63502663]
[1752477209701,0.25374955,122210.0,122190.0,0.64321]
[1752477209896,0.26193211,122210.0,122200.0,0.32099655]
[1752477210528,0.00818277,122200.0,122190.0,0.63502663]
[1752477210733,0.0081827,122200.0,122190.0,0.63502663]
[1752477210939,0.01636553,122200.0,122190.0,0.63502704]
[1752477211163,0.0081827,122200.0,122190.0,0.63502704]
[1752477211586,0.0081827,122200.0,122190.0,0.63216394]
[1752477212015,0.01636553,122200.0,122190.0,0.63216394]
[1752477212216,0.0081827,122200.0,122190.0,0.63216401]
[1752477212565,0.001,122200.0,122190.0,0.51454751]
[1752477212785,0.001,122200.0,122190.0,0.95257399]
[1752477213000,0.001,122200.0,122190.0,0.66267744]
[1752477213256,0.001,122200.0,122190.0,0.78835744]
[1752477213667,0.001,122200.0,122190.0,0.78839744]
[1752477214496,0.40025,122210.0,122200.0,0.18821521]
[1752477214704,0.40025,122210.0,122200.0,0.50921176]
[1752477214911,0.40025,122210.0,122200.0,0.63489176]
[1752477215800,0.40025,122210.0,122200.0,0.95588831]
[1752477216043,0.40125,122210.0,122200.0,0.66659176]
[1752477216657,0.00125,122210.0,122200.0,0.66659176]
[1752477217096,0.00125,122210.0,122200.0,0.62634169]
[1752477217329,0.00125,122210.0,122200.0,1.31993824]
[1752477217891,0.00125,122210.0,122200.0,1.44557824]
[1752477219362,0.00125,122210.0,122200.0,1.31993824]
[1752477219569,0.00125,122210.0,122200.0,1.44549824]
[1752477219944,0.00125,122210.0,122200.0,1.12450169]
[1752477220152,0.00125,122210.0,122200.0,1.44549824]
[1752477220733,0.00125,122210.0,122200.0,1.31993824]
[1752477221156,0.00125,122210.0,122200.0,1.44549824]
[1752477224877,0.00125,122210.0,122200.0,0.64534514]
[1752477225085,0.00125,122210.0,122200.0,0.73908514]
[1752477225297,0.03235,122210.0,122200.0,0.73908514]
[1752477225859,0.03235,122210.0,122200.0,1.06008169]
[1752477226272,0.03235,122210.0,122200.0,1.06004169]
[1752477227552,0.03235,122210.0,122200.0,0.93464169]
[1752477227753,0.03235,122210.0,122200.0,1.06004169]
[1752477228267,0.03235,122210.0,122200.0,0.93464169]
[1752477228483,0.03235,122210.0,122200.0,1.06000169]
[1752477229148,0.03235,122210.0,122200.0,0.93464169]
[1752477229356,0.03235,122210.0,122200.0,1.06000169]
[1752477230815,0.00818277,122200.0,122190.0,0.16900025]
[1752477231025,0.22144967,122210.0,122200.0,0.17184935]
[1752477231258,0.22144967,122210.0,122200.0,0.29728935]
[1752477231460,0.26193223,122210.0,122200.0,0.29728935]
[1752477231670,0.26093223,122210.0,122200.0,0.30547252]
[1752477231871,0.26093223,122210.0,122200.0,0.29728935]
[1752477232298,0.25274967,122210.0,122200.0,0.18003252]
[1752477232474,0.25274967,122210.0,122200.0,0.31361562]
[1752477232637,0.25374967,122210.0,122200.0,0.31361562]
[1752477233528,0.25374967,122210.0,122200.0,0.32179865]
[1752477233746,0.25374974,122210.0,122200.0,0.31361562]
[1752477233952,0.24556724,122210.0,122200.0,0.31361562]
[1752477234362,0.25374974,122210.0,122200.0,0.31361562]
[1752477234770,0.24556724,122210.0,122200.0,0.31361562]
[1752477235741,0.25374974,122210.0,122200.0,0.31361562]
[1752477235943,0.26193223,122210.0,122200.0,0.18003252]
[1752477236146,0.25374967,122210.0,122200.0,0.30539252]
[1752477236394,0.25374967,122210.0,122200.0,0.18821562]
[1752477236617,0.0481656,122200.0,122190.0,0.49818044]
[1752477236800,0.0399827,122200.0,122190.0,0.63168394]
[1752477237002,0.0318,122200.0,122190.0,0.63164394]
[1752477238054,0.0318,122200.0,122190.0,0.50636394]
[1752477238259,0.0318,122200.0,122190.0,0.63164394]
[1752477244293,0.46265,122210.0,122200.0,0.18821521]
[1752477244438,0.47083216,122210.0,122200.0,0.31337521]
[1752477244643,0.47083216,122210.0,122200.0,0.63437176]
[1752477245426,0.47901446,122210.0,122200.0,0.31337521]
[1752477245640,0.65084954,122210.0,122200.0,0.17184935]
[1752477245841,0.47083216,122210.0,122200.0,0.18821521]
[1752477246044,0.47901446,122210.0,122200.0,0.31333521]
[1752477247212,0.48001446,122210.0,122200.0,0.31333521]
[1752477247664,0.48819689,122210.0,122200.0,0.31333528]
[1752477247867,0.48001446,122210.0,122200.0,0.32151811]
[1752477247996,0.48819682,122210.0,122200.0,0.31333528]
[1752477248208,0.08001446,122210.0,122200.0,0.19639811]
[1752477248621,0.07183216,122210.0,122200.0,0.19639811]
[1752477248827,0.07183216,122210.0,122200.0,0.32143811]
[1752477249595,0.08001446,122210.0,122200.0,0.32143811]
[1752477250775,0.08819682,122210.0,122200.0,0.31325528]
[1752477250972,0.08001446,122210.0,122200.0,0.32143811]
[1752477251447,0.08001446,122210.0,122200.0,0.19639811]
[1752477251682,0.08001446,122210.0,122200.0,0.32143811]
[1752477252190,0.24366718,122210.0,122200.0,0.30507238]
[1752477252400,0.0808656,122200.0,122190.0,0.16367906]
[1752477252611,0.25271469,122200.0,122190.0,0.1800468]
[1752477252833,0.0314,122200.0,122190.0,0.19641441]
[1752477253034,0.0477656,122200.0,122190.0,0.20459798]
[1752477253240,0.0477656,122200.0,122190.0,0.32963798]
[1752477253427,0.0314,122200.0,122190.0,0.32963751]
[1752477254416,0.03958283,122200.0,122190.0,0.52559406]
[1752477254668,0.03958277,122200.0,122190.0,0.32959751]
[1752477255604,0.0314,122200.0,122190.0,0.20459751]
[1752477255830,0.23708495,122210.0,122200.0,0.18821528]
[1752477256041,0.24526698,122210.0,122200.0,0.30503238]
[1752477256273,0.24526698,122210.0,122200.0,0.31321535]
[1752477256498,0.25344928,122210.0,122200.0,0.31321535]
[1752477256715,0.25344928,122210.0,122200.0,0.30503238]
[1752477256920,0.25344928,122210.0,122200.0,0.31321535]
[1752477257163,0.26163218,122210.0,122200.0,0.125]
[1752477257410,0.26163218,122210.0,122200.0,0.14136653]
[1752477257686,0.26163218,122210.0,122200.0,0.1495497]
[1752477257934,0.26263218,122210.0,122200.0,0.1495497]
[1752477258422,0.0081827,122200.0,122190.0,0.48467561]
[1752477258642,0.0410827,122200.0,122190.0,0.49285911]
[1752477258889,0.0329,122200.0,122190.0,0.62600281]
[1752477259113,0.0329,122200.0,122190.0,0.63418671]
[1752477259336,0.0329,122200.0,122190.0,0.50922671]
[1752477259681,0.0329,122200.0,122190.0,0.63418671]
[1752477262032,0.0410827,122200.0,122190.0,0.31319016]
[1752477262270,0.0329,122200.0,122190.0,0.63418671]
[1752477262553,0.0329,122200.0,122190.0,0.50922671]
[1752477262742,0.0329,122200.0,122190.0,0.63418671]
[1752477264256,0.04108277,122200.0,122190.0,0.63418685]
[1752477264448,0.20474889,122200.0,122190.0,0.50104335]
[1752477264674,0.21293186,122200.0,122190.0,0.50104335]
[1752477264888,0.22111496,122200.0,122190.0,0.62600335]
[1752477265118,0.22111489,122200.0,122190.0,0.64237069]
[1752477265348,0.22111496,122200.0,122190.0,0.63418705]
[1752477265567,0.22111496,122200.0,122190.0,0.32137414]
[1752477265780,0.22111496,122200.0,122190.0,0.3131905]
[1752477266097,0.21293186,122200.0,122190.0,0.1800468]
[1752477266310,0.22929806,122200.0,122190.0,0.3050068]
[1752477266498,0.22929806,122200.0,122190.0,0.1800468]
[1752477266739,0.25201489,122200.0,122190.0,0.1882305]
[1752477266941,0.25201489,122200.0,122190.0,0.32137414]
[1752477267144,0.21293186,122200.0,122190.0,0.32137414]
[1752477267318,0.21293186,122200.0,122190.0,0.32955771]
[1752477267566,0.21293186,122200.0,122190.0,0.32137414]
[1752477267795,0.03928337,122190.0,122180.0,0.50105671]
[1752477268028,0.21932995,122190.0,122180.0,0.60964817]
[1752477268257,0.18006125,122180.0,122170.0,0.70799982]
[1752477268481,0.21116125,122180.0,122170.0,0.9349123]
[1752477268710,0.21116125,122180.0,122170.0,1.25590892]
[1752477268952,0.04746828,122180.0,122170.0,1.13913376]
[1752477269172,0.21016119,122180.0,122170.0,0.94309728]
[1752477269387,0.04646821,122180.0,122170.0,0.95128212]
[1752477269680,0.0281,122180.0,122170.0,0.95128212]
[1752477269885,0.0281,122180.0,122170.0,1.27227867]
[1752477270649,0.03628404,122180.0,122170.0,1.18684874]
[1752477270839,0.05265252,122180.0,122170.0,1.18684874]
[1752477271049,0.04446821,122180.0,122170.0,0.74089219]
[1752477271263,0.04446821,122180.0,122170.0,0.86885219]
[1752477271470,0.05265245,122180.0,122170.0,0.86785219]
[1752477271713,0.05265245,122180.0,122170.0,0.86585219]
[1752477271924,0.04446814,122180.0,122170.0,0.86585219]
[1752477272125,0.05265238,122180.0,122170.0,0.86585219]
[1752477272342,0.05265245,122180.0,122170.0,0.86585219]
[1752477272564,0.21634536,122180.0,122170.0,0.84129746]
[1752477272829,0.24794536,122180.0,122170.0,0.84948244]
[1752477273058,0.2561298,122180.0,122170.0,0.84129746]
[1752477273286,0.26431444,122180.0,122170.0,0.00015246]
[1752477273474,0.26431444,122180.0,122170.0,0.13329764]
[1752477273475,0.2479463,122180.0,122170.0,0.13329764]
[1752477273645,0.2479463,122180.0,122170.0,0.13329777]
[1752477274093,0.2479463,122180.0,122170.0,0.12511246]
[1752477274490,0.2479463,122180.0,122170.0,0.00015246]
[1752477274694,0.2479463,122180.0,122170.0,0.12511246]
[1752477274894,0.2479463,122180.0,122170.0,0.00015246]
[1752477275114,0.2479463,122180.0,122170.0,0.12511246]
[1752477275464,0.58192061,122180.0,122170.0,0.00015246]
[1752477275672,0.58192061,122180.0,122170.0,0.12511246]
[1752477275880,0.26092406,122180.0,122170.0,0.12511246]
[1752477276325,0.26092406,122180.0,122170.0,0.00015246]
[1752477276527,0.26092406,122180.0,122170.0,0.12511246]
[1752477276741,0.23157755,122180.0,122170.0,0.12511246]
[1752477277082,0.23557755,122180.0,122170.0,0.12511246]
[1752477277497,0.23557755,122180.0,122170.0,0.00015246]
[1752477277705,0.23557755,122180.0,122170.0,0.12511246]
[1752477280575,0.5565741,122180.0,122170.0,0.12515246]
[1752477280827,0.5565741,122180.0,122170.0,0.00015246]
[1752477281035,0.23557755,122180.0,122170.0,0.12515246]
[1752477283217,0.23557755,122180.0,122170.0,0.00015246]
[1752477283416,0.23557755,122180.0,122170.0,0.12515246]
[1752477285999,0.23557755,122180.0,122170.0,0.00015246]
[1752477286209,0.23557755,122180.0,122170.0,0.12515246]
[1752477286877,0.5565741,122180.0,122170.0,0.12515246]
[1752477287653,0.5565741,122180.0,122170.0,0.00015246]
[1752477287654,1.08107024,122180.0,122170.0,0.00015246]
[1752477287901,0.99654488,122180.0,122170.0,0.00015246]
[1752477288109,1.02109288,122180.0,122170.0,0.00015246]
[1752477288436,1.05043939,122180.0,122170.0,0.00015246]
[1752477288957,1.04743939,122180.0,122170.0,0.00015246]
[1752477289151,1.17143939,122180.0,122170.0,0.00015246]
[1752477289301,1.17343939,122180.0,122170.0,0.00015246]
[1752477289644,1.17443939,122180.0,122170.0,0.00015246]
[1752477289850,1.02009288,122180.0,122170.0,0.00015246]
[1752477290612,1.14509288,122180.0,122170.0,0.00015246]
[1752477292833,0.82409633,122180.0,122170.0,0.00015246]
[1752477293050,1.02009288,122180.0,122170.0,0.00015246]
[1752477293279,1.14509288,122180.0,122170.0,0.00015246]
[1752477295339,1.16948725,122180.0,122170.0,0.00015246]
[1752477296953,1.14509288,122180.0,122170.0,0.00015246]
[1752477297623,1.14504991,122180.0,122170.0,0.00015246]
[1752477298484,1.02004991,122180.0,122170.0,0.00015246]
[1752477298686,0.82405336,122180.0,122170.0,0.00015246]
[1752477298836,1.14504991,122180.0,122170.0,0.00015246]
[1752477300267,1.02004991,122180.0,122170.0,0.00015246]
[1752477300464,0.18010621,122150.0,122140.0,0.1966]
[1752477300673,0.18010621,122150.0,122140.0,0.3216]
[1752477301096,0.18010621,122150.0,122140.0,0.1966]
[1752477301307,0.18010621,122150.0,122140.0,0.3534]
[1752477301510,0.18010621,122150.0,122140.0,0.68258387]
[1752477301718,0.18010621,122150.0,122140.0,0.36158732]
[1752477301921,0.18010621,122150.0,122140.0,0.68358387]
[1752477302136,0.18010621,122150.0,122140.0,0.69177112]
[1752477302344,0.18829246,122150.0,122140.0,0.73870483]
[1752477302549,0.18829246,122150.0,122140.0,0.81370483]
[1752477303142,0.18829246,122150.0,122140.0,0.80551764]
[1752477303346,0.0163723,122150.0,122140.0,0.85459154]
[1752477303568,0.00818605,122150.0,122140.0,0.86277846]
[1752477303738,0.18191319,122170.0,122150.0,0.21190621]
[1752477303943,0.1900979,122170.0,122160.0,0.62604795]
[1752477304144,0.20646818,122170.0,122160.0,0.53288795]
[1752477304472,0.20646818,122170.0,122160.0,0.47775655]
[1752477304697,0.18009107,122160.0,122150.0,0.35279655]
[1752477304915,0.19646242,122160.0,122150.0,0.0318]
[1752477305303,0.19646242,122160.0,122150.0,0.64967618]
[1752477305457,0.19646242,122160.0,122150.0,0.65786263]
[1752477305660,0.18010541,122150.0,122140.0,0.2111]
[1752477305876,0.18010541,122150.0,122140.0,0.8126645]
[1752477305877,0.19647831,122150.0,122140.0,0.8126645]
[1752477306069,0.17290556,122160.0,122150.0,0.16373311]
[1752477306290,0.01637243,122150.0,122140.0,0.39790708]
[1752477306496,0.20466443,122150.0,122140.0,0.80447725]
[1752477306693,0.19647791,122150.0,122140.0,0.81266417]
[1752477306894,0.19647791,122150.0,122140.0,0.82085102]
[1752477307501,0.02455848,122150.0,122140.0,0.82085102]
[1752477307969,0.02455848,122150.0,122140.0,0.82185102]
[1752477308186,0.01637223,122150.0,122140.0,0.69689102]
[1752477308357,0.1800908,122160.0,122150.0,0.21320621]
[1752477308592,0.19646256,122160.0,122150.0,0.52601631]
[1752477308751,0.19646256,122160.0,122150.0,0.66734934]
[1752477308958,0.19646256,122160.0,122150.0,0.49542978]
[1752477309161,0.19646256,122160.0,122150.0,0.4541432]
[1752477309339,0.19646256,122160.0,122150.0,0.46232978]
[1752477309561,0.19746256,122160.0,122150.0,0.46232978]
[1752477309771,0.01737109,122160.0,122150.0,0.64243545]
[1752477309980,0.18927665,122160.0,122150.0,0.55017559]
[1752477310184,0.18927665,122160.0,122150.0,0.67513559]
[1752477310391,0.18927665,122160.0,122150.0,0.53380289]
[1752477310740,0.19027665,122160.0,122150.0,0.65876289]
[1752477310857,0.19027665,122160.0,122150.0,0.4868432]
[1752477311273,0.18209121,122160.0,122150.0,0.47865655]
[1752477311475,0.18209121,122160.0,122150.0,0.4868432]
[1752477311906,0.18209121,122160.0,122150.0,0.47865655]
[1752477312119,0.18209121,122160.0,122150.0,0.49502978]
[1752477312316,0.18209121,122160.0,122150.0,0.50321623]
[1752477312556,0.18209121,122160.0,122150.0,0.4868432]
[1752477313565,0.18209121,122160.0,122150.0,0.47865655]
[1752477314184,0.18209121,122160.0,122150.0,0.4868432]
[1752477314535,0.18209121,122160.0,122150.0,0.47865655]
[1752477314738,0.18209121,122160.0,122150.0,0.44595655]
[1752477314967,0.20550556,122160.0,122140.0,0.18830762]
[1752477315181,0.20550556,122160.0,122130.0,0.52464446]
[1752477315182,0.18830728,122140.0,122130.0,0.52464446]
[1752477315386,0.19649453,122140.0,122130.0,0.53298471]
[1752477315563,0.19649513,122140.0,122130.0,0.485997]
[1752477315772,0.19649513,122140.0,122130.0,0.64975692]
[1752477315979,0.58830781,122140.0,122130.0,0.64975692]
[1752477316118,0.58830781,122140.0,122130.0,0.53298478]
[1752477316327,0.58730781,122140.0,122130.0,0.66613257]
[1752477316527,0.41537364,122140.0,122130.0,0.67432029]
[1752477316771,0.4,122140.0,122130.0,0.58884781]
[1752477316977,0.4,122140.0,122130.0,0.71380781]
[1752477317966,0.18010595,122150.0,122140.0,0.21232082]
[1752477318169,0.1882926,122150.0,122140.0,0.53331744]
[1752477318373,0.17191922,122150.0,122140.0,0.54150449]
[1752477318592,0.18829178,122150.0,122140.0,0.54969148]
[1752477318784,0.1964783,122150.0,122140.0,0.52513032]
[1752477318983,0.18829178,122150.0,122140.0,0.65827751]
[1752477319186,0.18829178,122150.0,122140.0,0.67465162]
[1752477319353,0.18829178,122150.0,122140.0,0.68283854]
[1752477319578,0.18829178,122150.0,122140.0,0.66646437]
[1752477319778,0.18798115,122150.0,122140.0,0.67465129]
[1752477320001,0.19616767,122150.0,122140.0,0.66646443]
[1752477320370,0.18798115,122150.0,122140.0,0.68283827]
[1752477320570,0.19616747,122150.0,122140.0,0.68283834]
[1752477320772,0.20466449,122150.0,122140.0,0.66646443]
[1752477321010,0.02455854,122150.0,122140.0,0.67465128]
[1752477321217,0.01637229,122150.0,122140.0,0.67465128]
[1752477321415,0.02455861,122150.0,122140.0,0.67465128]
[1752477321618,0.19647817,122150.0,122140.0,0.67465142]
[1752477321831,0.19647817,122150.0,122140.0,0.68283834]
[1752477322003,0.19647817,122150.0,122140.0,0.67465142]
[1752477322375,0.19647817,122150.0,122140.0,0.66646443]
[1752477322584,0.19647817,122150.0,122140.0,0.67465142]
[1752477322757,0.19647824,122150.0,122140.0,0.66646443]
[1752477322958,0.19647824,122150.0,122140.0,0.67465142]
[1752477323122,0.19647824,122150.0,122140.0,0.66646443]
[1752477323346,0.18829172,122150.0,122140.0,0.67465142]
[1752477323551,0.19647817,122150.0,122140.0,0.67465142]
[1752477323756,0.19647817,122150.0,122140.0,0.68283834]
[1752477323937,0.19647817,122150.0,122140.0,0.55787834]
[1752477324314,0.19647817,122150.0,122140.0,0.67465142]
[1752477324440,0.21119114,122160.0,122150.0,0.17191976]
[1752477324641,0.22756263,122160.0,122150.0,0.17985634]
[1752477324844,0.22756263,122160.0,122150.0,0.33711972]
[1752477325069,0.22756263,122160.0,122150.0,0.33711978]
[1752477325278,0.22756256,122160.0,122150.0,0.33711978]
[1752477325598,0.22856256,122160.0,122150.0,0.3289332]
[1752477325804,0.22037705,122160.0,122150.0,0.33711978]
[1752477326033,0.22037705,122160.0,122150.0,0.50903941]
[1752477326237,0.22956303,122160.0,122150.0,0.32099655]
[1752477326417,0.22137738,122160.0,122150.0,0.44595655]
[1752477326872,0.23614836,122160.0,122150.0,0.4541432]
[1752477327072,0.23614836,122160.0,122150.0,0.46232978]
[1752477327358,0.22137738,122160.0,122150.0,0.44595655]
[1752477327565,0.18209067,122160.0,122150.0,0.52461618]
[1752477327780,0.02655647,122160.0,122150.0,0.53280256]
[1752477327952,0.19846196,122160.0,122150.0,0.65776263]
[1752477328161,0.19846249,122160.0,122150.0,0.52461624]
[1752477328391,0.19846249,122160.0,122150.0,0.33736978]
[1752477328587,0.19846249,122160.0,122150.0,0.63424934]
[1752477328838,0.20664847,122160.0,122150.0,0.63424941]
[1752477329393,0.002,122160.0,122150.0,0.71392197]
[1752477334123,0.402,122160.0,122150.0,0.71392197]
[1752477334285,0.402,122160.0,122150.0,0.70392197]
[1752477334669,0.402,122160.0,122150.0,0.71210862]
[1752477336197,0.41018538,122160.0,122150.0,0.71210862]
[1752477336371,0.41018538,122160.0,122150.0,0.36081207]
[1752477336551,0.41018538,122160.0,122150.0,0.68180862]
[1752477338080,0.41837082,122160.0,122150.0,0.68180862]
[1752477338590,0.41018538,122160.0,122150.0,0.68176862]
[1752477339470,0.41837082,122160.0,122150.0,0.68176862]
[1752477339671,0.41018538,122160.0,122150.0,0.68176862]
[1752477340477,0.402,122160.0,122150.0,0.80668862]
[1752477340695,0.402,122160.0,122150.0,0.83928862]
[1752477344684,0.41018538,122160.0,122150.0,0.83928862]
[1752477345155,0.402,122160.0,122150.0,0.83928862]
[1752477345748,0.41018538,122160.0,122150.0,0.83928862]
[1752477346227,0.402,122160.0,122150.0,0.83928862]
[1752477346444,0.002,122160.0,122150.0,0.83928862]
[1752477346680,0.002,122160.0,122150.0,1.5857151]
[1752477347147,0.4,122180.0,122170.0,0.22126143]
[1752477347384,0.4,122180.0,122170.0,0.50190143]
[1752477347659,0.4,122180.0,122170.0,0.58733136]
[1752477348289,0.22036081,122200.0,122190.0,0.18004699]
[1752477348487,0.22036081,122200.0,122190.0,0.7426599]
[1752477348488,0.22041156,122200.0,122190.0,0.7426599]
[1752477348742,0.22041156,122200.0,122190.0,0.75084354]
[1752477348944,0.22859479,122200.0,122190.0,0.75084367]
[1752477349342,0.22041156,122200.0,122190.0,0.76721074]
[1752477349542,0.22141162,122200.0,122190.0,0.75902731]
[1752477349768,0.21322839,122200.0,122190.0,0.75902731]
[1752477349985,0.21322839,122200.0,122190.0,0.76721081]
[1752477350188,0.01741628,122200.0,122190.0,0.76721081]
[1752477350393,0.00105075,122200.0,122190.0,0.80041081]
[1752477350608,0.00105075,122200.0,122190.0,0.83241081]
[1752477351383,5.075e-05,122200.0,122190.0,0.83241081]
[1752477351643,5.075e-05,122200.0,122190.0,0.83341081]
[1752477351889,5.075e-05,122200.0,122190.0,0.83441081]
[1752477353201,5.075e-05,122200.0,122190.0,0.80241081]
[1752477353431,0.00823352,122200.0,122190.0,0.80241081]
[1752477354055,0.00823345,122200.0,122190.0,0.80241081]
[1752477354296,5.075e-05,122200.0,122190.0,0.80241081]
[1752477354736,0.40005075,122200.0,122190.0,0.80241081]
[1752477355197,0.40823352,122200.0,122190.0,0.80241081]
[1752477355641,0.40005075,122200.0,122190.0,0.80241081]
[1752477356900,0.40823345,122200.0,122190.0,0.80241081]
[1752477359150,0.40005075,122200.0,122190.0,0.80241081]
[1752477359887,0.40823352,122200.0,122190.0,0.80241081]
[1752477360289,0.40005075,122200.0,122190.0,0.80241081]
[1752477360527,0.40823352,122200.0,122190.0,0.80241081]
[1752477360760,0.40823352,122200.0,122190.0,0.76921081]
[1752477360978,0.41641642,122200.0,122190.0,0.44821426]
[1752477361205,0.42459945,122200.0,122190.0,0.76921081]
[1752477361433,0.41641642,122200.0,122190.0,0.76921081]
[1752477361931,0.40823352,122200.0,122190.0,0.76921081]
[1752477362136,0.40005075,122200.0,122190.0,0.76921081]
[1752477362373,0.40823345,122200.0,122190.0,0.76921081]
[1752477362595,0.40823345,122200.0,122190.0,0.79961081]
[1752477363251,0.40005075,122200.0,122190.0,0.79961081]
[1752477363482,0.40823345,122200.0,122190.0,0.79961081]
[1752477364872,0.41641628,122200.0,122190.0,0.79961081]
[1752477365076,0.40823345,122200.0,122190.0,0.79961081]
[1752477365290,0.41641628,122200.0,122190.0,0.79961081]
[1752477365730,0.41641628,122200.0,122190.0,0.47861426]
[1752477365947,0.61896617,122200.0,122190.0,0.002]
[1752477366156,0.64198327,122200.0,122190.0,0.12684]
[1752477366364,0.64198327,122200.0,122190.0,0.002]
[1752477366574,0.96297982,122200.0,122190.0,0.12684]
[1752477366799,0.74838053,122200.0,122190.0,0.002]
[1752477367009,0.7829506,122200.0,122190.0,0.002]
[1752477367217,0.7829506,122200.0,122190.0,0.001]
[1752477367428,0.7829506,122200.0,122190.0,0.12584]
[1752477367643,0.7839506,122200.0,122190.0,0.12584]
[1752477368095,0.7829506,122200.0,122190.0,0.12484]
[1752477368298,0.7849506,122200.0,122190.0,0.12484]
[1752477368604,0.7859506,122200.0,122190.0,0.12484]
[1752477368820,0.7849506,122200.0,122190.0,0.12484]
[1752477369253,0.7859506,122200.0,122190.0,0.12484]
[1752477369473,0.21207013,122180.0,122170.0,0.4928881]
[1752477369690,0.00818471,122170.0,122160.0,0.21127951]
[1752477369891,0.01636955,122170.0,122160.0,0.65711606]
[1752477370091,0.00818471,122170.0,122160.0,0.65711606]
[1752477370313,0.2120708,122180.0,122160.0,0.34430489]
[1752477370566,0.2120708,122180.0,122170.0,0.44583655]
[1752477371002,0.2120708,122180.0,122160.0,0.21946489]
[1752477371003,0.18007659,122170.0,122160.0,0.49289075]
[1752477371226,0.22026143,122170.0,122160.0,0.13302591]
[1752477371436,0.22026143,122170.0,122160.0,0.47039409]
[1752477371703,0.22026143,122170.0,122150.0,0.19413311]
[1752477371704,0.1800908,122160.0,122150.0,0.19413311]
[1752477371909,0.00818544,122160.0,122150.0,0.50928908]
[1752477372119,0.00618544,122160.0,122150.0,0.68300131]
[1752477372320,0.41437102,122160.0,122150.0,0.67481526]
[1752477372438,0.41337102,122160.0,122150.0,0.67481533]
[1752477372644,0.40518544,122160.0,122150.0,0.68300151]
[1752477372852,0.58527644,122160.0,122150.0,0.65844276]
[1752477373063,0.59346222,122160.0,122150.0,0.63412921]
[1752477373274,0.58527644,122160.0,122150.0,0.64531553]
[1752477373922,0.57709073,122160.0,122150.0,0.65350178]
[1752477374128,0.58527638,122160.0,122150.0,0.65350178]
[1752477374385,0.58527638,122160.0,122150.0,0.62894276]
[1752477374562,0.62536216,122160.0,122150.0,0.63094276]
[1752477374904,0.63354807,122160.0,122150.0,0.63094276]
[1752477375123,0.62536216,122160.0,122150.0,0.50610276]
[1752477375340,0.24499134,122160.0,122150.0,0.12984]
[1752477375755,0.21199107,122160.0,122150.0,0.61456966]
[1752477375979,0.18009107,122160.0,122150.0,0.51428927]
[1752477376187,0.18827645,122160.0,122150.0,0.76396927]
[1752477376395,0.18827645,122160.0,122150.0,0.75578289]
[1752477376610,0.19646236,122160.0,122150.0,0.76396941]
[1752477376800,0.1964623,122160.0,122150.0,0.77215586]
[1752477377010,0.1964623,122160.0,122150.0,0.76396941]
[1752477377221,0.1964623,122160.0,122150.0,0.5818632]
[1752477377429,0.21149134,122160.0,122150.0,0.57367655]
[1752477377648,0.21149134,122160.0,122150.0,0.57467655]
[1752477378079,0.21149134,122160.0,122150.0,0.57986313]
[1752477378300,0.21149134,122160.0,122150.0,0.5798632]
[1752477378506,0.21967732,122160.0,122150.0,0.58904978]
[1752477378908,0.21967732,122160.0,122150.0,0.57267655]
[1752477379560,0.21967732,122160.0,122150.0,0.58086313]
[1752477379986,0.21967732,122160.0,122150.0,0.5808632]
[1752477380202,0.21967732,122160.0,122150.0,0.58904972]
[1752477380444,0.21967732,122160.0,122150.0,0.58904978]
[1752477380682,0.21967732,122160.0,122150.0,0.5808632]
[1752477380895,0.21967732,122160.0,122150.0,0.58904978]
[1752477381349,0.21967732,122160.0,122150.0,0.5808632]
[1752477381569,0.21967732,122160.0,122150.0,0.58904972]
[1752477381788,0.21967732,122160.0,122150.0,0.5808632]
[1752477382034,0.21967732,122160.0,122150.0,0.58904978]
[1752477383416,0.21967732,122160.0,122150.0,0.5972363]
[1752477383625,0.21967732,122160.0,122150.0,0.58904978]
[1752477384097,0.21967732,122160.0,122150.0,0.5972363]
[1752477384360,0.21967732,122160.0,122150.0,0.58904978]
[1752477384619,0.21436108,122160.0,122150.0,0.58904978]
[1752477384834,0.01004832,122160.0,122150.0,0.58904978]
[1752477385063,0.18009154,122160.0,122150.0,0.5972363]
[1752477385532,0.18009134,122160.0,122150.0,0.75278289]
[1752477385739,0.19592122,122160.0,122150.0,0.63612934]
[1752477385958,0.19592122,122160.0,122150.0,0.65250191]
[1752477386186,0.19592122,122160.0,122150.0,0.64431526]
[1752477386405,0.20410739,122160.0,122150.0,0.63612901]
[1752477386621,0.19646216,122160.0,122150.0,0.63612901]
[1752477388257,0.19646269,122160.0,122150.0,0.62794269]
[1752477388479,0.19646269,122160.0,122150.0,0.62794276]
[1752477388694,0.19646269,122160.0,122150.0,0.61975624]
[1752477388921,0.19646269,122160.0,122150.0,0.62794276]
[1752477389144,0.19646269,122160.0,122150.0,0.61975624]
[1752477389394,0.18827711,122160.0,122150.0,0.33936952]
[1752477389623,0.18827711,122160.0,122150.0,0.63612901]
[1752477390061,0.18827711,122160.0,122150.0,0.62794263]
[1752477390280,0.19646309,122160.0,122150.0,0.62794263]
[1752477390504,0.1800912,122160.0,122150.0,0.51128901]
[1752477390744,0.18827671,122160.0,122150.0,0.64431526]
[1752477391404,0.18827678,122160.0,122150.0,0.64431526]
[1752477391831,0.00818551,122160.0,122150.0,0.65250144]
[1752477392032,0.01637116,122160.0,122150.0,0.52766144]
[1752477392330,0.01637116,122160.0,122150.0,0.55966144]
[1752477392563,0.18009087,122160.0,122150.0,0.64331526]
[1752477392766,0.18827665,122160.0,122150.0,0.65150144]
[1752477392943,0.18827665,122160.0,122150.0,0.64331526]
[1752477393386,0.18827665,122160.0,122150.0,0.51747526]
[1752477393686,0.18827665,122160.0,122150.0,0.64231526]
[1752477393887,0.18827665,122160.0,122150.0,0.64231533]
[1752477394100,0.19646256,122160.0,122150.0,0.50928901]
[1752477394350,0.19646256,122160.0,122150.0,0.61775618]
[1752477394651,0.19746256,122160.0,122150.0,0.61775618]